bitfinex-derivatives/quotes_SOLF0:USTF0_20250714
["timestamp","ask_amount","ask_price","bid_price","bid_amount"]
[1752456549015,3.51,161.94,161.92,3.00649212]
[1752456549514,3.51,161.93,161.92,6.51649212]
[1752456550822,3.51,161.93,161.92,12.68949212]
[1752456552519,3.51,161.93,161.92,6.51649212]
[1752456555224,3.51,161.93,161.92,12.68959212]
[1752456556522,3.51,161.94,161.93,3.51]
[1752456557824,9.6823,161.94,161.93,3.51]
[1752456558523,3.51,161.94,161.93,3.51]
[1752456559927,9.6823,161.94,161.93,3.51]
[1752456560427,3.51,161.94,161.93,9.6827]
[1752456560817,3.51,161.94,161.93,3.51]
[1752456562928,3.51,161.94,161.93,9.6827]
[1752456563632,3.51,161.98,161.95,3.51]
[1752456564926,6.1715,161.97,161.95,3.51]
[1752456565133,3.51,161.96,161.95,3.51]
[1752456565628,5.14492323,162.0,161.95,3.51]
[1752456565832,3.51,161.97,161.96,6.51649212]
[1752456566529,3.51,161.97,161.96,12.68809212]
[1752456566834,3.51,161.97,161.96,6.51649212]
[1752456567033,3.51,161.97,161.96,3.51]
[1752456568835,9.6812,161.97,161.96,3.51]
[1752456570138,3.51,161.97,161.96,3.51]
[1752456570835,6.1709,161.98,161.96,3.51]
[1752456571040,3.4,161.97,161.96,9.6816]
[1752456571339,3.4,161.98,161.97,3.51]
[1752456574541,6.1708,161.98,161.97,3.51]
[1752456574736,9.5708,161.98,161.97,3.51]
[1752456574936,3.4,161.98,161.97,3.51]
[1752456576041,3.4,161.99,161.98,3.51]
[1752456579034,9.5704,161.99,161.98,3.51]
[1752456579334,6.1704,161.99,161.97,6.51649212]
[1752456579540,3.4,161.98,161.97,6.51649212]
[1752456580238,9.5708,161.98,161.97,6.51649212]
[1752456580432,3.4,161.97,161.95,3.51]
[1752456580637,3.4,161.97,161.93,6.51649212]
[1752456580839,3.4,161.94,161.93,6.51649212]
[1752456581437,9.5723,161.94,161.93,6.51649212]
[1752456581739,3.4,161.94,161.92,3.51]
[1752456582039,3.4,161.92,161.91,6.51649212]
[1752456582532,3.4,161.92,161.89,6.174]
[1752456582533,3.4,161.91,161.9,3.51]
[1752456583538,3.4,161.96,161.9,3.51]
[1752456583739,3.4,161.96,161.92,3.51]
[1752456584036,6.1726,161.94,161.91,3.00649212]
[1752456584241,3.4,161.93,161.92,3.51]
[1752456584741,9.5727,161.93,161.92,3.51]
[1752456584936,3.4,161.92,161.91,3.51]
[1752456586541,9.5731,161.92,161.91,3.51]
[1752456587741,3.4,161.95,161.88,3.00649212]
[1752456588341,3.4,161.89,161.87,3.51]
[1752456588948,6.1745,161.89,161.87,3.51]
[1752456589145,3.4,161.88,161.87,3.51]
[1752456590442,3.4,161.88,161.87,9.685]
[1752456590644,3.4,161.88,161.87,3.51]
[1752456591447,3.4,161.89,161.87,3.51]
[1752456591647,3.4,161.89,161.87,9.685]
[1752456591850,3.4,161.89,161.87,6.175]
[1752456592044,3.4,161.89,161.88,3.51]
[1752456592944,3.4,161.91,161.89,3.51]
[1752456593556,3.4,161.92,161.91,3.51]
[1752456595952,6.1731,161.92,161.9,3.00649212]
[1752456596152,3.4,161.91,161.9,6.51649212]
[1752456598154,3.4,161.91,161.9,12.69029212]
[1752456598654,3.4,161.92,161.91,3.51]
[1752456599051,3.4,161.93,161.91,3.51]
[1752456599351,3.4,161.93,161.92,3.51]
[1752456600151,6.1725,161.94,161.92,3.51]
[1752456600349,9.8113,161.97,161.93,3.34]
[1752456600555,3.64,161.96,161.95,6.34649212]
[1752456600852,5.1680533,162.0,161.95,6.34649212]
[1752456601053,154.64870898,162.02,161.97,3.00649212]
[1752456601257,3.64,161.98,161.97,6.34649212]
[1752456601656,3.64,162.0,161.98,3.34]
[1752456601854,183.9080533,162.06,161.99,3.00649212]
[1752456602052,3.64,162.02,162.01,6.34649212]
[1752456602452,3.64,162.04,162.02,3.34]
[1752456602655,3.64,162.04,162.03,6.34649212]
[1752456602950,6.1684,162.05,162.03,3.00649212]
[1752456603156,9.8084,162.05,162.04,3.34]
[1752456603560,6.1685,162.04,162.03,3.00649212]
[1752456603757,3.64,162.04,162.03,6.34649212]
[1752456604455,3.64,162.04,162.03,3.34]
[1752456604757,5.1680533,162.09,162.02,6.34649212]
[1752456604951,5.1680533,162.09,162.01,3.00649212]
[1752456604952,3.64,162.08,162.01,3.00649212]
[1752456605151,3.00649212,162.07,162.0,3.34]
[1752456605351,3.64,162.06,162.0,3.34]
[1752456605555,3.64,162.01,162.0,3.34]
[1752456606450,3.00649212,162.07,161.98,6.1708]
[1752456606655,9.81,162.01,161.99,6.34649212]
[1752456606856,3.64,162.0,161.99,6.34649212]
[1752456607359,8.17454542,162.07,161.97,6.34649212]
[1752456607360,3.64,162.04,161.97,6.34649212]
[1752456608163,6.1703,162.0,161.97,6.34649212]
[1752456608353,3.64,161.99,161.98,3.34]
[1752456608658,9.8104,161.99,161.98,3.34]
[1752456609460,3.64,161.99,161.98,3.34]
[1752456609858,6.1701,162.0,161.97,9.17759212]
[1752456610053,9.8101,162.0,161.99,3.34]
[1752456610654,9.8101,162.0,161.97,6.34649212]
[1752456610963,9.8104,161.99,161.98,3.34]
[1752456611861,3.64,161.98,161.97,3.34]
[1752456612063,3.64,161.98,161.97,6.34649212]
[1752456614166,9.8108,161.98,161.97,6.34649212]
[1752456616470,3.64,161.97,161.95,3.00649212]
[1752456616971,3.64,161.95,161.93,3.00649212]
[1752456617267,3.64,161.95,161.93,3.34]
[1752456617861,3.64,161.98,161.91,6.34649212]
[1752456618165,3.64,161.98,161.92,3.34]
[1752456618367,6.1722,161.95,161.92,6.1731]
[1752456618659,3.64,161.94,161.93,3.34]
[1752456619462,3.64,161.95,161.92,3.34]
[1752456619663,8.17454542,162.01,161.93,3.00649212]
[1752456619861,3.64,161.96,161.94,3.34]
[1752456620164,3.64,162.0,161.94,3.34]
[1752456621476,3.64,161.95,161.94,3.34]
[1752456622065,3.64,161.95,161.93,3.00649212]
[1752456622066,3.64,161.95,161.93,3.34]
[1752456622272,3.64,161.93,161.91,3.00649212]
[1752456622564,3.64,161.92,161.91,6.34649212]
[1752456622967,3.64,161.94,161.93,3.34]
[1752456623162,5.1680533,162.01,161.93,3.34]
[1752456623368,6.64649212,162.0,161.93,6.34649212]
[1752456623568,3.64,161.99,161.95,3.34]
[1752456624370,3.64,161.99,161.93,6.34649212]
[1752456624566,3.64,161.99,161.94,3.34]
[1752456625077,3.64,161.95,161.92,3.34]
[1752456625371,3.64,161.95,161.91,3.00649212]
[1752456625372,3.64,161.95,161.91,6.34649212]
[1752456625872,6.173,161.93,161.9,6.1737]
[1752456626064,6.173,161.93,161.89,3.00649212]
[1752456626065,3.64,161.92,161.89,6.34649212]
[1752456626270,3.64,161.92,161.9,3.34]
[1752456626469,3.64,161.91,161.9,3.34]
[1752456628476,3.64,161.92,161.91,3.34]
[1752456629572,5.1680533,161.99,161.91,3.34]
[1752456629770,3.64,161.98,161.91,6.34649212]
[1752456630073,3.64,161.98,161.92,3.34]
[1752456630273,3.62,161.94,161.93,3.65]
[1752456631169,3.62,161.94,161.92,3.65]
[1752456631369,6.173,161.93,161.91,6.65649212]
[1752456631573,3.62,161.92,161.91,6.65649212]
[1752456632176,3.62,161.92,161.91,3.00649212]
[1752456632679,3.62,161.92,161.9,9.8236]
[1752456632872,6.1741,161.9,161.87,9.8248]
[1752456633180,3.62,161.94,161.87,3.65]
[1752456633375,3.62,161.89,161.86,3.00649212]
[1752456633573,3.62,161.89,161.86,6.65649212]
[1752456634085,3.62,161.88,161.85,3.65]
[1752456634274,3.62,161.87,161.86,3.65]
[1752456635187,6.1745,161.89,161.85,3.65]
[1752456635381,3.62,161.86,161.85,3.65]
[1752456635579,3.00649212,161.93,161.84,3.00649212]
[1752456635778,3.62,161.87,161.86,3.65]
[1752456635980,3.62,161.87,161.84,6.65649212]
[1752456636173,3.62,161.86,161.85,3.65]
[1752456637082,3.62,161.86,161.84,3.00649212]
[1752456637083,3.62,161.85,161.84,6.65649212]
[1752456637380,3.62,161.85,161.84,3.65]
[1752456638085,3.62,161.87,161.84,3.65]
[1752456638283,3.62,161.86,161.85,3.65]
[1752456639485,3.62,161.86,161.84,9.8259]
[1752456639982,3.62,161.85,161.84,6.1759]
[1752456640185,6.1747,161.88,161.85,6.1757]
[1752456640186,3.62,161.86,161.85,6.1757]
[1752456640590,3.62,161.86,161.85,3.65]
[1752456641392,9.7954,161.86,161.84,6.65649212]
[1752456641589,3.62,161.85,161.84,6.65649212]
[1752456642087,3.62,161.84,161.82,12.83339212]
[1752456642296,3.62,161.83,161.82,9.18339212]
[1752456642492,3.62,161.83,161.82,6.1769]
[1752456642694,3.62,161.83,161.81,184.8372]
[1752456642996,3.62,161.83,161.77,6.65649212]
[1752456643192,3.62,161.83,161.77,3.65]
[1752456643396,3.62,161.83,161.78,3.65]
[1752456643988,3.62,161.82,161.78,3.65]
[1752456644184,3.62,161.8,161.77,3.00649212]
[1752456644385,3.00649212,161.85,161.79,3.65]
[1752456644593,3.62,161.79,161.78,9.8284]
[1752456644990,3.62,161.79,161.76,3.65]
[1752456645190,3.00649212,161.83,161.77,3.65]
[1752456645496,3.62,161.78,161.77,3.65]
[1752456646287,3.62,161.77,161.76,9.8291]
[1752456646892,3.62,161.79,161.77,6.1786]
[1752456647092,3.62,161.82,161.76,3.65]
[1752456647394,3.00649212,161.83,161.75,6.65649212]
[1752456647395,3.62,161.79,161.75,6.65649212]
[1752456647896,6.1783,161.79,161.76,6.1789]
[1752456648093,3.62,161.77,161.76,3.65]
[1752456648698,3.62,161.77,161.76,9.8292]
[1752456649185,3.62,161.77,161.69,178.76]
[1752456649387,3.62,161.77,161.7,3.65]
[1752456649597,3.62,161.8,161.73,3.65]
[1752456649793,6.1785,161.78,161.73,3.65]
[1752456649994,3.62,161.76,161.73,3.65]
[1752456650396,3.62,161.76,161.75,9.8296]
[1752456650598,3.62,161.75,161.71,3.65]
[1752456650793,3.00649212,161.81,161.73,3.65]
[1752456650994,3.62,161.74,161.73,9.8301]
[1752456651189,3.62,161.74,161.7,3.00649212]
[1752456651497,6.1789,161.77,161.73,6.1801]
[1752456651694,3.62,161.76,161.74,3.65]
[1752456652599,3.62,161.76,161.75,3.65]
[1752456652795,533.64,161.86,161.75,3.65]
[1752456652796,3.00649212,161.85,161.75,3.65]
[1752456653104,3.62,161.79,161.78,9.8281]
[1752456654099,6.1781,161.79,161.76,6.1791]
[1752456654298,3.62,161.77,161.76,9.8291]
[1752456654796,3.62,161.77,161.74,6.1796]
[1752456654998,3.62,161.76,161.74,12.83609212]
[1752456655392,3.62,161.76,161.75,3.65]
[1752456656201,3.62,161.76,161.74,6.1796]
[1752456656601,3.62,161.76,161.73,6.1802]
[1752456656797,3.62,161.76,161.72,6.65649212]
[1752456657002,3.62,161.78,161.72,3.00649212]
[1752456657203,3.62,161.78,161.75,9.8293]
[1752456657503,3.62,161.78,161.75,3.65]
[1752456657905,3.62,161.77,161.75,3.65]
[1752456658105,3.62,161.76,161.75,3.65]
[1752456659502,3.62,161.76,161.75,9.8296]
[1752456660300,3.48,161.8,161.74,3.00649212]
[1752456660502,3.48,161.81,161.8,3.48]
[1752456660805,3.48,161.83,161.81,3.48]
[1752456661005,6.1753,161.87,161.83,3.48]
[1752456661206,3.48,161.87,161.84,3.00649212]
[1752456661506,3.48,161.86,161.85,3.48]
[1752456661900,3.48,161.88,161.85,3.48]
[1752456662501,3.48,161.88,161.84,3.00649212]
[1752456662702,3.48,161.88,161.84,6.48649212]
[1752456662896,6.175,161.87,161.84,12.66239212]
[1752456663098,3.48,161.86,161.85,3.48]
[1752456664709,3.48,161.86,161.85,9.6558]
[1752456665309,3.48,161.86,161.85,3.48]
[1752456665907,3.48,161.86,161.85,9.6558]
[1752456666211,9.655,161.87,161.76,182.28649212]
[1752456666411,3.48,161.9,161.77,3.48]
[1752456666605,3.48,161.9,161.83,3.00649212]
[1752456666806,6.1756,161.86,161.83,3.00649212]
[1752456667003,6.1756,161.86,161.83,6.48649212]
[1752456667206,3.48,161.84,161.83,6.48649212]
[1752456667409,6.175,161.88,161.83,6.48649212]
[1752456667613,3.48,161.85,161.84,3.48]
[1752456669815,3.00649212,161.91,161.84,3.48]
[1752456670106,3.48,161.9,161.89,3.48]
[1752456670303,3.48,161.9,161.89,6.48649212]
[1752456670704,9.6533,161.92,161.89,12.66069212]
[1752456671011,6.1733,161.92,161.89,12.66069212]
[1752456671310,3.48,161.9,161.89,12.66069212]
[1752456672112,3.48,161.9,161.89,3.00649212]
[1752456672311,3.48,161.9,161.87,3.48]
[1752456672507,3.48,161.9,161.87,6.48649212]
[1752456673113,3.48,161.88,161.78,3.48]
[1752456673311,3.48,161.88,161.83,6.48649212]
[1752456673508,3.48,161.88,161.84,3.48]
[1752456673706,3.48,161.86,161.84,3.48]
[1752456674013,3.48,161.85,161.84,3.48]
[1752456674715,3.48,161.85,161.84,9.6561]
[1752456674906,3.00649212,161.92,161.84,3.48]
[1752456675113,3.48,161.87,161.85,6.48649212]
[1752456675310,3.48,161.86,161.85,12.66199212]
[1752456676403,6.1748,161.88,161.85,12.66199212]
[1752456676607,3.48,161.87,161.86,3.48]
[1752456677409,6.1748,161.88,161.85,12.66199212]
[1752456677609,3.48,161.86,161.85,12.66199212]
[1752456677815,3.48,161.86,161.83,6.1762]
[1752456678016,3.48,161.85,161.84,3.00649212]
[1752456679018,3.48,161.85,161.84,9.18259212]
[1752456679218,3.48,161.85,161.84,12.66259212]
[1752456679518,3.48,161.85,161.82,6.48649212]
[1752456679813,3.48,161.84,161.83,3.48]
[1752456680126,3.48,161.84,161.83,9.6564]
[1752456680318,3.48,161.85,161.84,3.48]
[1752456680821,3.48,161.85,161.83,9.6563]
[1752456681022,3.48,161.84,161.83,9.6563]
[1752456681215,3.48,161.85,161.84,3.48]
[1752456681416,3.48,161.85,161.83,6.1763]
[1752456681925,3.48,161.84,161.83,9.6563]
[1752456682321,3.48,161.84,161.82,3.00649212]
[1752456682517,3.00649212,161.88,161.82,3.00649212]
[1752456682726,3.48,161.83,161.82,3.00649212]
[1752456683021,3.48,161.83,161.82,6.48649212]
[1752456684122,3.48,161.82,161.81,3.48]
[1752456684922,3.48,161.82,161.81,9.6572]
[1752456685114,5.11851114,161.91,161.81,3.48]
[1752456685321,3.48,161.88,161.81,3.48]
[1752456685623,3.48,161.88,161.81,9.6571]
[1752456686317,6.176,161.85,161.81,9.6571]
[1752456686517,3.48,161.83,161.82,9.6568]
[1752456686711,3.48,161.88,161.82,3.00649212]
[1752456686916,3.48,161.88,161.82,6.48649212]
[1752456687116,3.48,161.88,161.82,12.66329212]
[1752456687317,6.176,161.85,161.82,12.66329212]
[1752456687516,3.48,161.84,161.82,6.48649212]
[1752456687718,3.48,161.83,161.82,6.48649212]
[1752456688023,3.48,161.83,161.82,3.00649212]
[1752456688216,3.48,161.83,161.8,12.66409212]
[1752456688918,3.48,161.82,161.8,12.66409212]
[1752456689115,6.1767,161.83,161.8,12.66409212]
[1752456689322,3.48,161.81,161.8,12.66409212]
[1752456689824,3.48,161.83,161.82,3.48]
[1752456690429,3.48,161.83,161.82,9.6569]
[1752456690724,3.67,161.88,161.83,3.49]
[1752456691023,3.67,161.88,161.82,3.00649212]
[1752456691517,9.845,161.88,161.84,6.176]
[1752456691723,3.67,161.89,161.85,3.49]
[1752456692118,6.1748,161.88,161.82,3.00649212]
[1752456692418,6.1748,161.88,161.76,3.00649212]
[1752456692419,3.67,161.88,161.87,3.49]
[1752456692922,3.67,161.93,161.87,3.49]
[1752456693321,6.1737,161.91,161.87,3.49]
[1752456693515,3.67,161.9,161.87,3.49]
[1752456693710,3.67,161.9,161.88,3.49]
[1752456694124,3.67,161.89,161.88,3.49]
[1752456694528,3.67,161.89,161.88,9.6646]
[1752456694727,9.8437,161.91,161.89,3.49]
[1752456694920,3.67,161.9,161.89,3.49]
[1752456695921,9.8438,161.9,161.88,3.00649212]
[1752456696129,3.67,161.89,161.88,6.49649212]
[1752456696324,3.67,161.89,161.88,3.00649212]
[1752456696917,3.67,161.89,161.77,6.8905679]
[1752456697127,3.67,161.89,161.85,3.49]
[1752456697322,3.00649212,161.92,161.84,3.00649212]
[1752456697523,3.67,161.88,161.87,3.49]
[1752456697926,3.67,161.91,161.85,9.6656]
[1752456698123,3.67,161.87,161.84,6.49649212]
[1752456698628,3.67,161.85,161.84,6.49649212]
[1752456698930,3.00649212,161.9,161.82,6.49649212]
[1752456699132,3.67,161.84,161.82,6.49649212]
[1752456699332,3.67,161.84,161.83,3.49]
[1752456700629,3.67,161.84,161.83,9.6665]
[1752456701334,3.67,161.84,161.83,3.49]
[1752456702034,3.67,161.87,161.83,3.49]
[1752456702231,3.67,161.86,161.83,3.49]
[1752456702429,3.67,161.89,161.83,3.49]
[1752456702936,3.67,161.83,161.8,3.00649212]
[1752456703130,3.67,161.82,161.81,3.49]
[1752456703732,9.8469,161.82,161.81,3.49]
[1752456703935,3.67,161.81,161.8,3.49]
[1752456704130,3.67,161.81,161.74,716.18649212]
[1752456704336,6.1787,161.78,161.74,188.52629212]
[1752456704537,3.67,161.76,161.75,3.49]
[1752456705333,6.1786,161.78,161.74,3.49]
[1752456705740,3.67,161.76,161.74,9.6697]
[1752456705939,6.1786,161.78,161.74,9.6697]
[1752456706237,3.67,161.75,161.74,3.49]
[1752456707540,3.67,161.75,161.74,9.67]
[1752456707841,9.8489,161.77,161.74,9.67]
[1752456708036,6.1789,161.77,161.74,9.67]
[1752456708237,3.67,161.75,161.74,9.67]
[1752456709536,6.1784,161.79,161.76,3.49]
[1752456709744,3.67,161.79,161.76,3.49]
[1752456710338,3.67,161.79,161.75,3.00649212]
[1752456710536,3.67,161.79,161.76,3.49]
[1752456711035,6.1777,161.8,161.68,9.89706002]
[1752456711241,3.67,161.78,161.77,3.49]
[1752456711840,3.67,161.79,161.76,9.6689]
[1752456712043,6.1774,161.81,161.77,3.49]
[1752456712240,3.67,161.8,161.75,3.00649212]
[1752456712438,3.67,161.8,161.76,3.49]
[1752456712837,3.67,161.79,161.77,3.49]
[1752456713039,3.67,161.78,161.77,3.49]
[1752456714542,3.67,161.78,161.77,9.6688]
[1752456716742,3.67,161.8,161.76,3.49]
[1752456716945,3.67,161.8,161.78,3.49]
[1752456717146,3.67,161.8,161.79,3.49]
[1752456717948,3.67,161.8,161.77,3.00649212]
[1752456718245,3.67,161.79,161.78,3.49]
[1752456719552,6.1782,161.79,161.76,6.1792]
[1752456719851,3.67,161.77,161.76,3.49]
[1752456720054,3.67,161.77,161.74,6.49649212]
[1752456720251,3.67,161.76,161.75,9.6693]
[1752456720941,3.67,161.76,161.74,3.00649212]
[1752456720942,3.37,161.75,161.74,12.50629212]
[1752456721141,3.37,161.75,161.74,3.32]
[1752456721348,3.37,161.74,161.72,6.1805]
[1752456721645,3.37,161.74,161.73,3.32]
[1752456722144,3.37,161.78,161.72,3.32]
[1752456722340,3.37,161.78,161.73,3.00649212]
[1752456722550,3.37,161.77,161.76,3.32]
[1752456722751,3.37,161.77,161.76,9.4992]
[1752456722953,3.37,161.77,161.76,3.32]
[1752456723851,6.1788,161.77,161.74,6.1798]
[1752456724051,3.00649212,161.81,161.73,3.00649212]
[1752456724052,3.37,161.76,161.73,6.32649212]
[1752456724446,6.1795,161.76,161.73,12.50659212]
[1752456724648,3.37,161.74,161.73,12.50659212]
[1752456725054,3.37,161.74,161.73,9.5001]
[1752456727042,6.1789,161.77,161.74,6.1798]
[1752456727245,3.37,161.76,161.74,9.4998]
[1752456728149,6.1792,161.76,161.74,3.32]
[1752456728454,3.37,161.75,161.74,3.32]
[1752456728649,3.37,161.75,161.73,6.1802]
[1752456728854,3.37,161.74,161.73,9.5002]
[1752456730654,3.37,161.74,161.7,3.00649212]
[1752456730857,3.37,161.73,161.71,3.32]
[1752456731157,3.37,161.74,161.71,9.5007]
[1752456731351,3.37,161.73,161.72,3.32]
[1752456732051,6.1794,161.76,161.72,3.32]
[1752456732252,3.37,161.74,161.72,3.32]
[1752456732450,3.00649212,161.79,161.71,3.32]
[1752456732654,3.37,161.73,161.72,6.1806]
[1752456732955,3.37,161.74,161.73,3.32]
[1752456733458,3.37,161.73,161.72,3.32]
[1752456736357,9.5503,161.73,161.72,3.32]
[1752456737654,6.1803,161.73,161.7,3.00649212]
[1752456737853,3.37,161.72,161.71,3.32]
[1752456738559,6.1803,161.73,161.71,3.32]
[1752456738761,9.5503,161.73,161.72,3.32]
[1752456739157,3.37,161.71,161.7,3.00649212]
[1752456739755,3.37,161.72,161.71,3.32]
[1752456740058,9.5505,161.73,161.71,3.32]
[1752456740864,3.37,161.73,161.72,3.32]
[1752456741656,3.37,161.78,161.73,3.32]
[1752456741961,3.37,161.81,161.75,3.32]
[1752456742755,6.179,161.77,161.74,9.18639212]
[1752456743051,9.549,161.77,161.76,3.32]
[1752456746162,3.37,161.77,161.76,3.32]
[1752456746764,9.5488,161.77,161.76,3.32]
[1752456751468,3.64,161.75,161.74,6.41649212]
[1752456752165,3.64,161.75,161.74,3.41]
[1752456752365,3.64,161.77,161.71,3.41]
[1752456752565,3.64,161.77,161.75,3.41]
[1752456752770,3.64,161.77,161.76,3.41]
[1752456753775,3.64,161.79,161.76,3.41]
[1752456753973,3.64,161.81,161.8,3.41]
[1752456754267,3.64,161.85,161.81,3.41]
[1752456754471,3.64,161.85,161.84,9.5861]
[1752456754664,3.64,161.87,161.84,3.02647778]
[1752456754864,3.64,161.87,161.86,6.1754]
[1752456755066,3.64,161.87,161.86,9.5854]
[1752456755869,3.64,161.87,161.86,3.41]
[1752456756471,3.64,161.87,161.86,9.5854]
[1752456757174,3.64,161.9,161.87,3.41]
[1752456757369,3.64,161.93,161.89,3.41]
[1752456757567,9.813,161.93,161.89,9.5839]
[1752456757765,3.64,161.92,161.86,3.41]
[1752456757970,8.75851114,161.96,161.92,3.41]
[1752456758165,3.64,161.96,161.95,3.41]
[1752456758569,3.64,161.99,161.95,3.41]
[1752456758766,3.64,161.99,161.98,3.41]
[1752456758971,3.64,162.02,161.99,3.41]
[1752456759375,3.64,162.0,161.99,3.41]
[1752456759569,184.15851114,162.06,161.99,3.41]
[1752456759772,184.15851114,162.06,162.0,3.01795076]
[1752456759773,3.64,162.05,162.0,3.01795076]
[1752456760071,3.64,162.03,162.01,3.41]
[1752456760274,538.93851114,162.09,162.02,6.42795076]
[1752456760474,3.64,162.08,162.03,3.41]
[1752456761278,6.168,162.06,162.03,3.41]
[1752456761470,3.64,162.05,162.03,3.41]
[1752456762179,9.8082,162.05,162.03,3.41]
[1752456762368,3.64,162.08,162.02,3.01795076]
[1752456762873,3.64,162.08,162.02,6.42795076]
[1752456763378,3.64,162.04,162.02,6.42795076]
[1752456763574,3.64,162.03,162.02,6.42795076]
[1752456764981,3.64,162.04,162.02,6.42795076]
[1752456765176,3.64,162.03,162.01,3.01795076]
[1752456765388,3.64,162.02,162.01,3.01795076]
[1752456765582,3.64,162.02,162.01,6.42795076]
[1752456766480,3.64,162.08,162.02,3.41]
[1752456766679,3.64,162.08,162.06,3.01795076]
[1752456766877,3.64,162.08,162.07,3.41]
[1752456767883,9.8067,162.09,162.08,3.41]
[1752456768081,9.8067,162.09,162.06,3.01795076]
[1752456768082,6.1667,162.09,162.07,3.41]
[1752456768384,3.64,162.08,162.07,3.41]
[1752456768574,3.64,162.09,162.08,3.41]
[1752456768774,3.64,162.09,162.06,3.01795076]
[1752456768978,3.64,162.09,162.08,3.41]
[1752456769484,9.8061,162.11,162.08,6.42795076]
[1752456769787,3.64,162.09,162.0,3.01795076]
[1752456770086,3.64,162.12,162.06,3.01795076]
[1752456770382,3.64,162.08,162.06,6.42795076]
[1752456770573,3.64,162.07,162.06,3.41]
[1752456770773,3.64,162.07,162.04,3.41]
[1752456770978,3.64,162.05,162.02,3.41]
[1752456771181,3.64,162.05,162.01,3.01795076]
[1752456771380,3.64,162.03,162.01,6.42795076]
[1752456771584,3.64,162.03,162.02,3.41]
[1752456771884,9.8089,162.03,162.02,3.41]
[1752456772077,3.64,162.03,162.02,3.41]
[1752456774179,9.8089,162.03,162.02,3.41]
[1752456774679,6.1693,162.02,162.0,6.42795076]
[1752456774886,3.64,162.01,162.0,6.42795076]
[1752456775080,3.64,162.01,161.98,3.01795076]
[1752456775280,6.1701,162.0,161.97,9.5811]
[1752456775486,3.64,161.98,161.97,9.5811]
[1752456775682,3.64,161.98,161.97,3.41]
[1752456775881,3.01795076,162.04,161.98,3.41]
[1752456775882,3.64,161.99,161.98,3.41]
[1752456778486,3.64,161.99,161.96,6.1715]
[1752456778789,3.64,162.01,161.95,12.59975076]
[1752456779192,6.1708,161.98,161.95,12.59975076]
[1752456779390,3.64,161.97,161.95,12.59975076]
[1752456779580,3.01795076,162.02,161.95,3.01795076]
[1752456779784,3.64,161.96,161.93,3.41]
[1752456779986,3.64,161.96,161.91,3.01795076]
[1752456780189,6.1727,161.93,161.91,6.42795076]
[1752456780487,6.1727,161.93,161.89,6.1738]
[1752456780488,3.36,161.92,161.9,3.66]